Cogmind - Beta 13 @@@ ROGUE MODE // 2024.02.26 @ 20:46:39 Player: Dosh Result: Destroyed by O6-RKS(R) with Subdweller Machine Gun Performance ------------- Evolutions (0) 0 Regions Visited (2) 400 Robots Destroyed (23) 115 Value Destroyed (435) 435 Prototype IDs (3) 60 Alien Tech Used (0) 0 Bonus (0) 0 TOTAL SCORE: 1010 Bonus ------- None Cogmind --------- Core Integrity 0/250 Matter 214/300 Energy 98/100 System Corruption 0% Temperature Cool (0) Movement Core (50) Location -10/Subcaves Parts ------- > --- POWER (1) -------- (None) > --- PROPULSION (2) --- (None) > --- UTILITY (2) ------ (None) > --- WEAPON (2) ------- (None) > --- INVENTORY (5) ---- Ion Engine Wheel Peak State ------------ > --- POWER ------------ Light Angular Momentum Engine > --- PROPULSION ------- Light Treads Light Treads > --- UTILITY ---------- Large Storage Unit Subdweller Optics > --- WEAPON ----------- Assault Rifle Light Assault Rifle > --- INVENTORY -------- Ion Engine Light Ion Engine Light Treads Light Treads Light Treads Wheel Small Storage Unit Huge Storage Unit Core Shielding Scrap Shield Assault Rifle Light Assault Rifle [Rating: 13] Favorites ----------- Power Ion Engine Engine Ion Engine Propulsion Light Treads Treads Light Treads Utility Large Storage Unit Device Subdweller Optics Storage Large Storage Unit Processor Signal Interpreter Protection Core Shielding Weapon Assault Rifle Ballistic Gun Assault Rifle Build | -11 -10 -10 ------- Run | Yrd Mat Sub Slots Evolved . | . . . Power . | . . . Propulsion . | . . . Utility . | . . . Weapon . | . . . Parts Attached 25 | 7 9 9 Power 5 | 1 1 3 Engine 5 | 1 1 3 Core . | . . . Reactor . | . . . Propulsion 5 | 2 2 1 Treads 5 | 2 2 1 Leg . | . . . Wheel . | . . . Hover . | . . . Flight . | . . . Utility 8 | 1 4 3 Device 1 | . . 1 Storage 2 | 1 1 . Processor 1 | . 1 . Hackware . | . . . Protection 4 | . 2 2 Artifact . | . . . Weapon 7 | 3 2 2 Energy Gun . | . . . Energy Cannon . | . . . Ballistic Gun 7 | 3 2 2 Ballistic Cannon . | . . . Launcher . | . . . Special Weapon . | . . . Impact Weapon . | . . . Slashing Weapon . | . . . Piercing Weapon . | . . . Special Melee Weapon . | . . . Unidentified Prototypes . | . . . Parts Lost 9 | . . 9 Power 1 | . . 1 Propulsion 3 | . . 3 Utility 1 | . . 1 Weapon 4 | . . 4 Highest Loss Streak 5 | . . 5 To Critical Strikes . | . . . Average Slot Usage (%) 95 | . 97 91 Engine 13 | . 14 12 Treads 27 | . 28 26 Device 1 | . . 6 Storage 13 | . 14 10 Protection 9 | . 11 5 Ballistic Gun 27 | . 27 27 Naked Turns 4 | . . 4 Heaviest Build 34 | 14 34 34 Greatest Support 40 | 40 40 40 Greatest Overweight (x) . | . . . Average Overweight (x) . | . . . Largest Inventory Capacity 15 | 8 15 15 Average Capacity 12 | 6 14 12 Most Carried 14 | 3 11 14 Average Carried 7 | 1 7 10 Final Capacity 15 | 8 15 5 Final Carried 9 | 3 9 2 Class Distribution -------------------- 92% | Mutant 7% | Subdweller-Mutant Dominant Class ---------------- Mutant | -10/Materials Mutant | -10/Subcaves Resources | -11 -10 -10 ----------- Run | Yrd Mat Sub Matter Collected 856 | 200 397 259 Remotely . | . . . Salvage Created 706 | . 607 99 Parts 51 | . 46 5 Haulers Intercepted 2 | . 2 . Recyclers Shooed 2 | . 2 . Parts Field Recycled . | . . . Retrieved Matter . | . . . Parts Self-Destructed . | . . . Prevented . | . . . Kills | -11 -10 -10 ------- Run | Yrd Mat Sub Combat Hostiles Destroyed 18 | . 16 2 Guns 18 | . 16 2 Classes Destroyed 7 | . 6 1 Worker 1 | . 1 . Hauler 2 | . 2 . Recycler 1 | . 1 . Watcher 1 | . 1 . Swarmer 9 | . 9 . Grunt 7 | . 7 . Subdweller 2 | . . 2 Best Kill Streak 3 | . 3 1 Combat Bots Only 3 | . 3 1 Max Kills in Single Turn 1 | . 1 1 Gunslinging . | . . . Exploded . | . . . Melee . | . . . Uniques/NPCs Destroyed . | . . . Combat | -11 -10 -10 -------- Run | Yrd Mat Sub Hostile Shots Fired 173 | . 96 77 Missed 46 | . 24 22 Damage Taken 1774 | . 656 1118 Core 259 | . 119 140 Absorbed by Shields . | . . . Redirected to Shielding 15 | . 15 . Regen/Repaired (Parts) 76 | . 76 . Core Remaining (%) 100 | 100 . . Volleys Fired 127 | . 61 66 Largest 2 | . 2 2 Hottest 40 | . 40 40 Shots Fired 247 | . 120 127 Gun 247 | . 120 127 Cannon . | . . . Launcher . | . . . Special . | . . . Kinetic 247 | . 120 127 Thermal . | . . . Explosive . | . . . Electromagnetic . | . . . Robot Hit Streak 21 | . 14 21 Robot Miss Streak 5 | . 5 3 Penetration Max . | . . . Secondary Targets 3 | . 3 . Max Gunslinging Chain 1 | . 1 . Shots Hit Robots 179 | . 72 107 Core Hits 45 | . 35 10 Critical Kills . | . . . Critical Parts Destroyed 1 | . . 1 Critical Strikes 1 | . . 1 Destroy 1 | . . 1 Melee Attacks . | . . . Impact . | . . . Slashing . | . . . Piercing . | . . . Sneak Attacks . | . . . Combat Hostiles . | . . . Follow-up Attacks . | . . . Damage Inflicted 1310 | . 926 384 Guns 1272 | . 888 384 Cannons . | . . . Explosions . | . . . Melee . | . . . Ramming 38 | . 38 . Kinetic 1272 | . 888 384 Thermal . | . . . Explosive . | . . . Electromagnetic . | . . . Impact . | . . . Slashing . | . . . Piercing . | . . . Highest Corruption . | . . . Average Corruption . | . . . Corruption Purged . | . . . Corruption Blocked . | . . . Overload Shots . | . . . Overflow Damage . | . . . Projectiles . | . . . Explosions . | . . . Melee . | . . . Knockbacks 1 | . 1 . Impact 1 | . 1 . Kinetic . | . . . Secondary . | . . . Self-Inflicted Damage . | . . . Shots . | . . . Rammed 9 | . 9 . Targets Rammed 10 | . 10 . Kicked . | . . . Crushed 1 | . 1 . Highest Temperature 34 | . 34 . Average Temperature 15 | . 15 . Received Heat Transfer 234 | . 168 66 Siege Activations . | . . . Robots Corrupted . | . . . Combat Hostiles . | . . . Parts Fried . | . . . Impact Corruptions . | . . . Robots Melted . | . . . Combat Hostiles . | . . . Parts Melted . | . . . Heat Transferred . | . . . Parts Sabotaged . | . . . Parts Stolen . | . . . Parts Stripped . | . . . Power Chain Reactions . | . . . Alert | -11 -10 -10 ------- Run | Yrd Mat Sub Peak Influence 300 | . 300 . Initial . | . . . Average 139 | . 177 . Maximum Alert Level 1 | . 1 . Low Security (%) 58 | 100 47 . Level 1 41 | . 52 . Level 2 . | . . . Level 3 . | . . . Level 4 . | . . . Level 5 . | . . . High Security . | . . . Max Security . | . . . Squads Dispatched 5 | . 5 . Investigation 4 | . 4 . Extermination . | . . . Reinforcement 1 | . 1 . Assault . | . . . Garrison . | . . . Intercept . | . . . Searches Triggered . | . . . Construction Impeded . | . . . Haulers Reinforced . | . . . Active Scanning Responses . | . . . Cargo Convoy Interrupts . | . . . Stealth | -11 -10 -10 --------- Run | Yrd Mat Sub Distress Signals 2 | . 2 . Communications Jammed . | . . . Distress Signals . | . . . Times Spotted 43 | . 33 10 Peak Tracking Total 5 | . 5 4 Tactical Retreats 2 | . 2 . Traps | -11 -10 -10 ------- Run | Yrd Mat Sub Traps Triggered 1 | . 1 . Indirectly . | . . . Trap Hack Attempts . | . . . Triggered . | . . . Disarmed 6 | . 6 . Reprogrammed . | . . . Reused . | . . . Traps Extracted . | . . . Installed . | . . . Triggered . | . . . Machines | -11 -10 -10 ---------- Run | Yrd Mat Sub Machines Disabled . | . . . Max in Single Turn . | . . . Machines Repaired . | . . . Machines Dismantled . | . . . Machines Sabotaged . | . . . Overloaded Fab Kills . | . . . Hacking | -11 -10 -10 --------- Run | Yrd Mat Sub Machines Accessed 10 | . 10 . Terminals 7 | . 7 . Fabricators . | . . . Repair Stations 1 | . 1 . Recycling Units 2 | . 2 . Scanalyzers . | . . . Garrison Access . | . . . Total Hacks 30 | . 30 . Successful 16 | . 16 . Failed 13 | . 13 . Catastrophic 2 | . 2 . Database Lockouts 1 | . 1 . Manual 14 | . 14 . Terminals 25 | . 25 . Fabricators . | . . . Repair Stations 3 | . 3 . Recycling Units 2 | . 2 . Scanalyzers . | . . . Garrison Access . | . . . Terminal Hacks 10 | . 10 . Robot Analysis 2 | . 2 . Prototype ID Bank 2 | . 2 . Level Access Points 1 | . 1 . Branch Access Points 2 | . 2 . Terminal Index 1 | . 1 . Disarm Traps 1 | . 1 . Zone Layout 1 | . 1 . Fabricator Hacks . | . . . Repair Station Hacks 2 | . 2 . Scan Component 1 | . 1 . Repair 1 | . 1 . Recycling Unit Hacks . | . . . Scanalyzer . | . . . Garrison Access Hacks . | . . . Unauthorized Hacks 4 | . 4 . Terminals 2 | . 2 . Botnet 2 | . 2 . Fabricators . | . . . Repair Stations . | . . . Recycling Units 2 | . 2 . Tunnel 2 | . 2 . Scanalyzers . | . . . Garrison Access . | . . . Data Cores Recovered . | . . . Used . | . . . Hacking Detections 8 | . 8 . Full Trace Events 2 | . 2 . Feedback Events . | . . . Feedback Blocked . | . . . Robot Schematics Acquired . | . . . Robots Built . | . . . Authchips . | . . . Time . | . . . Total Robot Build Rating . | . . . Part Schematics Acquired . | . . . Parts Built . | . . . Authchips . | . . . Time . | . . . Total Part Build Rating . | . . . Parts Repaired 1 | . 1 . Time 26 | . 26 . Parts Recycled . | . . . Recycled Matter . | . . . Retrieved Matter . | . . . Retrieved Components . | . . . Parts Scanalyzed . | . . . Part Schematics Acquired . | . . . Parts Damaged . | . . . Bothacking | -11 -10 -10 ------------ Run | Yrd Mat Sub Used RIF Installer . | . . . Robots Hacked . | . . . Non-combat . | . . . Combat . | . . . Robot Hacks Applied . | . . . Relay Couplers Released . | . . . Fabnet Peak Effective % . | . . . Robots Rewired . | . . . Allies Hacked . | . . . Hacks Repelled . | . . . Allies | -11 -10 -10 -------- Run | Yrd Mat Sub Total Allies . | . . . Largest Group . | . . . Highest-Rated Group . | . . . Highest-Rated Ally . | . . . Total Orders . | . . . Ally Attacks . | . . . Total Damage . | . . . Kills . | . . . Allies Corrupted . | . . . Allies Melted . | . . . Intel | -11 -10 -10 ------- Run | Yrd Mat Sub Robot Analysis Total 2 | . 2 . Derelict Logs Recovered 1 | . . 1 Drone Launches . | . . . Drone Recoveries . | . . . Exploration | -11 -10 -10 ------------- Run | Yrd Mat Sub Turns Passed 2106 | 339 1248 519 Spaces Moved 1030 | 236 597 197 Core 185 | 179 . 6 Treads 845 | 57 597 191 Legs . | . . . Wheels . | . . . Hover . | . . . Flight . | . . . Fastest Speed 50 | 50 160 50 Average Speed 140 | 76 160 156 Slowest Speed 160 | 160 160 160 Overloaded Moves . | . . . Propulsion Burnouts . | . . . Robots Hopped . | . . . Cave-ins Triggered . | . . . Exploration Rate (%) 39 | 9 95 13 Regions Visited 2 Branch Regions 1 Pre-discovered Areas 2 | . 2 . Known Exits Taken 1 | . 1 . Unknown Exits Taken 1 | 1 . . Scrap Searched 1 | . . 1 Spaces Dug . | . . . Terrain Destroyed . | . . . Melee . | . . . Projectile . | . . . AOE . | . . . Terrain Rammed . | . . . Walls Destroyed . | . . . Machines Disabled . | . . . Actions | -11 -10 -10 --------- Run | Yrd Mat Sub Total 1454 | 391 765 298 Wait 239 | 146 79 14 Move 1028 | 235 596 197 Hop . | . . . Pick Up 11 | 3 6 2 Fast Attach 11 | 5 2 4 Attach 7 | 1 1 5 Detach 6 | . 1 5 Swap 7 | 1 6 . Drop 8 | . 3 5 Fire 127 | . 61 66 Melee . | . . . Ram . | . . . Kick . | . . . Crush 10 | . 10 . Escape Stasis . | . . . Rewire . | . . . Trap . | . . . Miscellaneous . | . . . Route ------- -11/Scrapyard -10/Materials (discovered 6 exits: *Mat x3 / *Min x2 / *Sub) -10/Subcaves History --------- Turn | Location | Event 9 | -11/Scrapyard | Discovered new exit (range 16) 340 | -11/Scrapyard | Entered Materials 341 | -10/Materials | Build established: Mutant 397 | -10/Materials | Discovered new exit (range 3) 674 | -10/Materials | Discovered new exit (range 14) 845 | -10/Materials | Discovered new exit (range 14) 874 | -10/Materials | Central database locked down 950 | -10/Materials | Discovered new exit (range 7) 1000 | -10/Materials | Discovered new exit (range 8) 1051 | -10/Materials | Identified exit to Mines 1090 | -10/Materials | Identified exit to Materials 1127 | -10/Materials | Repaired Assault Rifle 1581 | -10/Materials | Identified exit to Subcaves 1588 | -10/Materials | Entered Subcaves 1622 | -10/Subcaves | Learned Materials garrison access intel 1728 | -10/Subcaves | Ambushed by swarm of Subdwellers 1768 | -10/Subcaves | Lost 3 allies 1777 | -10/Subcaves | Core integrity fell below 50% 2079 | -10/Subcaves | Lost 5 parts (1p1n1u2w) 2085 | -10/Subcaves | Core integrity fell below 20% 2107 | -10/Subcaves | Destroyed by O6-RKS(R) with Subdweller Machine Gun Last Messages --------------- 01852_ AC-OVB(R) destroyed. 01854_ Acquired 28 matter. 01917_ Sub. Optics shoots sparks and powers down. 01919_ Dropped Broken Sub. Optics. 01921_ Dropped Sml. Storage Unit. 01988_ Dropped Lrg. Storage Unit. 01988_ HV Slug penetrates Wall. 01989_ Dropped Core Shielding. 01992_ Acquired Lgt. Assault Rifle. 01994_ G8-RSJ(h) destroyed. 02022_ Assault Rifle destroyed. 02034_ Lgt. Treads destroyed. 02036_ Scrap Shield destroyed. 02040_ Lgt. Assault Rifle destroyed. 02045_ Acquired Lgt. Treads. 02048_ Lgt. Angular Momentum Engine destroyed. 02080_ Lgt. Treads destroyed. 02100_ Lgt. Assault Rifle destroyed. 02103_ Assault Rifle destroyed. 02104_ Acquired 54 matter. Map ----- +----------------------------------------------------+ | ???????????????????????????????????????????? | | ???????????????????????????????????????????? | | ???????????????????????????????????????????? | | ???????????????????????????????????????????? | | ???????????????????????????????????????????? | | ???????????????????????????????????????????? | | ???????????????????????????????????????????? | | ???????????????????????????????????????????? | | ???????????????????????????????????????????? | | ???????????????????????????????????????????? | | ???????????????????????????????????????????? | | ???????????????????????????????????????????? | | ???????????????????????????????????????????? | | ???????????????????????????????????????????? | | ???????????????????????????????????????????# | | ????????????????????????????????????######## | | ???????????????????????????????????## ## | | ???????????????????????????????????# | | ???????????????????????##??????????# | | ????????????????????### #?????????## | | ???????????????????## #??????????# | | ???????????????????# #####???????# | | ???????????????????# #???????## ## | | ??????????????????## ###?########## | | ????????????????### ##### ?## #### # | | ???????????????## =@= ### ### ## ## | | ??????????######= !!# ## ## #? | | ??????????#" ##